{"text_format":"3","workbook":"xlsx","n_sheets":3,"sheets":["Εργασίες","Προβολή μήνα","Προβολή εβδομάδας"],"not_rendered":{"images":4,"defined_names":16},"read":"whole","date_system":"1900"}

{"sheet":"Εργασίες","index":0,"n_rows":15,"n_cols":3,"rows_kept":15}
[null,"ΠΡΟΒΟΛΗ ΜΗΝΑ","ΠΡΟΒΟΛΗ ΕΒΔΟΜΑΔΑΣ"]
[null," ΕΡΓΑΣΙΕΣ"]
[null,"ΠΕΡΙΓΡΑΦΗ","ΠΡΟΘΕΣΜΙΑ"]
[null,"Εργασία 1",{"$f":"TODAY()","v":"2016-11-29"}]
[null,"Εργασία 2",{"$f":"TODAY()+15","v":"2016-12-14"}]
[null,"Εργασία 3",{"$f":"TODAY()+30","v":"2016-12-29"}]
[null,"Εργασία 4",{"$f":"TODAY()+45","v":"2017-01-13"}]
[null,"Εργασία 5",{"$f":"TODAY()+60","v":"2017-01-28"}]
[null,"Εργασία 6",{"$f":"TODAY()+75","v":"2017-02-12"}]
[null,"Εργασία 7",{"$f":"TODAY()+90","v":"2017-02-27"}]
[null,"Εργασία 8",{"$f":"TODAY()+105","v":"2017-03-14"}]
[null,"Εργασία 9",{"$f":"TODAY()+115","v":"2017-03-24"}]
[null,"Εργασία 10",{"$f":"TODAY()+130","v":"2017-04-08"}]
[null,"Εργασία 11",{"$f":"TODAY()+145","v":"2017-04-23"}]
[null,"Εργασία 12",{"$f":"TODAY()+160","v":"2017-05-08"}]

{"sheet":"Προβολή μήνα","index":1,"n_rows":17,"n_cols":8,"rows_kept":17,"merged":[[3,1,3,7]]}
[null,"ΕΡΓΑΣΙΕΣ","ΠΡΟΒΟΛΗ ΕΒΔΟΜΑΔΑΣ"]
[null,"Επιλέξτε μήνα:","Εισαγάγετε έτος:"]
[null,9,{"$f":"YEAR(TODAY())","v":2016}]
[null," ΠΡΟΒΟΛΗ ΜΗΝΑ"]
[null,"ΔΕΥΤΕΡΑ","ΤΡΙΤΗ","ΤΕΤΑΡΤΗ","ΠΕΜΠΤΗ","ΠΑΡΑΣΚΕΥΗ","ΣΑΒΒΑΤΟ","ΚΥΡΙΑΚΗ"]
[null,{"$f":"IF(WEEKDAY(DATEVALUE(\" 1/ \"&ΜΜήνας&\" / \"&ΜηνΈτους)-1)=COLUMN(A$2),1,IF(LEN(A6)>0,A6+1,\"\"))","v":""},"","",1,2,3,4]
[null,{"$f":"IF(LEN(B6)=0,\"\",IF(COUNTIF(Εργασίες[ΠΡΟΘΕΣΜΙΑ],DATE(ΜηνΈτους,ΑρΜΜήνα,B6))>0,\"Παράδοση εργασίας!\",\"\"))","v":""},{"$f":"IF(LEN(C6)=0,\"\",IF(COUNTIF(Εργασίες[ΠΡΟΘΕΣΜΙΑ],DATE(ΜηνΈτους,ΑρΜΜήνα,C6))>0,\"Παράδοση εργασίας!\",\"\"))","v":""},{"$f":"IF(LEN(D6)=0,\"\",IF(COUNTIF(Εργασίες[ΠΡΟΘΕΣΜΙΑ],DATE(ΜηνΈτους,ΑρΜΜήνα,D6))>0,\"Παράδοση εργασίας!\",\"\"))","v":""},{"$f":"IF(LEN(E6)=0,\"\",IF(COUNTIF(Εργασίες[ΠΡΟΘΕΣΜΙΑ],DATE(ΜηνΈτους,ΑρΜΜήνα,E6))>0,\"Παράδοση εργασίας!\",\"\"))","v":""},{"$f":"IF(LEN(F6)=0,\"\",IF(COUNTIF(Εργασίες[ΠΡΟΘΕΣΜΙΑ],DATE(ΜηνΈτους,ΑρΜΜήνα,F6))>0,\"Παράδοση εργασίας!\",\"\"))","v":""},{"$f":"IF(LEN(G6)=0,\"\",IF(COUNTIF(Εργασίες[ΠΡΟΘΕΣΜΙΑ],DATE(ΜηνΈτους,ΑρΜΜήνα,G6))>0,\"Παράδοση εργασίας!\",\"\"))","v":""},{"$f":"IF(LEN(H6)=0,\"\",IF(COUNTIF(Εργασίες[ΠΡΟΘΕΣΜΙΑ],DATE(ΜηνΈτους,ΑρΜΜήνα,H6))>0,\"Παράδοση εργασίας!\",\"\"))","v":""}]
[null,{"$f":"IF(LEN(H6)>0,IF(H6=DAY(DATE(ΜηνΈτους,ΑρΜΜήνα+1,0)),\"\",H6+1),\"\")","v":5},{"$f":"IF(LEN(B8)>0,IF(B8=DAY(DATE(ΜηνΈτους,ΑρΜΜήνα+1,0)),\"\",B8+1),\"\")","v":6},7,8,9,10,11]
[null,{"$f":"IF(LEN(B8)=0,\"\",IF(COUNTIF(Εργασίες[ΠΡΟΘΕΣΜΙΑ],DATE(ΜηνΈτους,ΑρΜΜήνα,B8))>0,\"Παράδοση εργασίας!\",\"\"))","v":""},{"$f":"IF(LEN(C8)=0,\"\",IF(COUNTIF(Εργασίες[ΠΡΟΘΕΣΜΙΑ],DATE(ΜηνΈτους,ΑρΜΜήνα,C8))>0,\"Παράδοση εργασίας!\",\"\"))","v":""},{"$f":"IF(LEN(D8)=0,\"\",IF(COUNTIF(Εργασίες[ΠΡΟΘΕΣΜΙΑ],DATE(ΜηνΈτους,ΑρΜΜήνα,D8))>0,\"Παράδοση εργασίας!\",\"\"))","v":""},{"$f":"IF(LEN(E8)=0,\"\",IF(COUNTIF(Εργασίες[ΠΡΟΘΕΣΜΙΑ],DATE(ΜηνΈτους,ΑρΜΜήνα,E8))>0,\"Παράδοση εργασίας!\",\"\"))","v":""},{"$f":"IF(LEN(F8)=0,\"\",IF(COUNTIF(Εργασίες[ΠΡΟΘΕΣΜΙΑ],DATE(ΜηνΈτους,ΑρΜΜήνα,F8))>0,\"Παράδοση εργασίας!\",\"\"))","v":""},{"$f":"IF(LEN(G8)=0,\"\",IF(COUNTIF(Εργασίες[ΠΡΟΘΕΣΜΙΑ],DATE(ΜηνΈτους,ΑρΜΜήνα,G8))>0,\"Παράδοση εργασίας!\",\"\"))","v":""},{"$f":"IF(LEN(H8)=0,\"\",IF(COUNTIF(Εργασίες[ΠΡΟΘΕΣΜΙΑ],DATE(ΜηνΈτους,ΑρΜΜήνα,H8))>0,\"Παράδοση εργασίας!\",\"\"))","v":""}]
[null,{"$f":"IF(LEN(H8)>0,IF(H8=DAY(DATE(ΜηνΈτους,ΑρΜΜήνα+1,0)),\"\",H8+1),\"\")","v":12},{"$f":"IF(LEN(B10)>0,IF(B10=DAY(DATE(ΜηνΈτους,ΑρΜΜήνα+1,0)),\"\",B10+1),\"\")","v":13},14,15,16,17,18]
[null,{"$f":"IF(LEN(B10)=0,\"\",IF(COUNTIF(Εργασίες[ΠΡΟΘΕΣΜΙΑ],DATE(ΜηνΈτους,ΑρΜΜήνα,B10))>0,\"Παράδοση εργασίας!\",\"\"))","v":""},{"$f":"IF(LEN(C10)=0,\"\",IF(COUNTIF(Εργασίες[ΠΡΟΘΕΣΜΙΑ],DATE(ΜηνΈτους,ΑρΜΜήνα,C10))>0,\"Παράδοση εργασίας!\",\"\"))","v":""},{"$f":"IF(LEN(D10)=0,\"\",IF(COUNTIF(Εργασίες[ΠΡΟΘΕΣΜΙΑ],DATE(ΜηνΈτους,ΑρΜΜήνα,D10))>0,\"Παράδοση εργασίας!\",\"\"))","v":""},{"$f":"IF(LEN(E10)=0,\"\",IF(COUNTIF(Εργασίες[ΠΡΟΘΕΣΜΙΑ],DATE(ΜηνΈτους,ΑρΜΜήνα,E10))>0,\"Παράδοση εργασίας!\",\"\"))","v":""},{"$f":"IF(LEN(F10)=0,\"\",IF(COUNTIF(Εργασίες[ΠΡΟΘΕΣΜΙΑ],DATE(ΜηνΈτους,ΑρΜΜήνα,F10))>0,\"Παράδοση εργασίας!\",\"\"))","v":""},{"$f":"IF(LEN(G10)=0,\"\",IF(COUNTIF(Εργασίες[ΠΡΟΘΕΣΜΙΑ],DATE(ΜηνΈτους,ΑρΜΜήνα,G10))>0,\"Παράδοση εργασίας!\",\"\"))","v":""},{"$f":"IF(LEN(H10)=0,\"\",IF(COUNTIF(Εργασίες[ΠΡΟΘΕΣΜΙΑ],DATE(ΜηνΈτους,ΑρΜΜήνα,H10))>0,\"Παράδοση εργασίας!\",\"\"))","v":""}]
[null,{"$f":"IF(LEN(H10)>0,IF(H10=DAY(DATE(ΜηνΈτους,ΑρΜΜήνα+1,0)),\"\",H10+1),\"\")","v":19},{"$f":"IF(LEN(B12)>0,IF(B12=DAY(DATE(ΜηνΈτους,ΑρΜΜήνα+1,0)),\"\",B12+1),\"\")","v":20},21,22,23,24,25]
[null,{"$f":"IF(LEN(B12)=0,\"\",IF(COUNTIF(Εργασίες[ΠΡΟΘΕΣΜΙΑ],DATE(ΜηνΈτους,ΑρΜΜήνα,B12))>0,\"Παράδοση εργασίας!\",\"\"))","v":""},{"$f":"IF(LEN(C12)=0,\"\",IF(COUNTIF(Εργασίες[ΠΡΟΘΕΣΜΙΑ],DATE(ΜηνΈτους,ΑρΜΜήνα,C12))>0,\"Παράδοση εργασίας!\",\"\"))","v":""},{"$f":"IF(LEN(D12)=0,\"\",IF(COUNTIF(Εργασίες[ΠΡΟΘΕΣΜΙΑ],DATE(ΜηνΈτους,ΑρΜΜήνα,D12))>0,\"Παράδοση εργασίας!\",\"\"))","v":""},{"$f":"IF(LEN(E12)=0,\"\",IF(COUNTIF(Εργασίες[ΠΡΟΘΕΣΜΙΑ],DATE(ΜηνΈτους,ΑρΜΜήνα,E12))>0,\"Παράδοση εργασίας!\",\"\"))","v":""},{"$f":"IF(LEN(F12)=0,\"\",IF(COUNTIF(Εργασίες[ΠΡΟΘΕΣΜΙΑ],DATE(ΜηνΈτους,ΑρΜΜήνα,F12))>0,\"Παράδοση εργασίας!\",\"\"))","v":""},{"$f":"IF(LEN(G12)=0,\"\",IF(COUNTIF(Εργασίες[ΠΡΟΘΕΣΜΙΑ],DATE(ΜηνΈτους,ΑρΜΜήνα,G12))>0,\"Παράδοση εργασίας!\",\"\"))","v":""},{"$f":"IF(LEN(H12)=0,\"\",IF(COUNTIF(Εργασίες[ΠΡΟΘΕΣΜΙΑ],DATE(ΜηνΈτους,ΑρΜΜήνα,H12))>0,\"Παράδοση εργασίας!\",\"\"))","v":""}]
[null,{"$f":"IF(LEN(H12)>0,IF(H12=DAY(DATE(ΜηνΈτους,ΑρΜΜήνα+1,0)),\"\",H12+1),\"\")","v":26},{"$f":"IF(LEN(B14)>0,IF(B14=DAY(DATE(ΜηνΈτους,ΑρΜΜήνα+1,0)),\"\",B14+1),\"\")","v":27},28,29,30,"",""]
[null,{"$f":"IF(LEN(B14)=0,\"\",IF(COUNTIF(Εργασίες[ΠΡΟΘΕΣΜΙΑ],DATE(ΜηνΈτους,ΑρΜΜήνα,B14))>0,\"Παράδοση εργασίας!\",\"\"))","v":""},{"$f":"IF(LEN(C14)=0,\"\",IF(COUNTIF(Εργασίες[ΠΡΟΘΕΣΜΙΑ],DATE(ΜηνΈτους,ΑρΜΜήνα,C14))>0,\"Παράδοση εργασίας!\",\"\"))","v":""},{"$f":"IF(LEN(D14)=0,\"\",IF(COUNTIF(Εργασίες[ΠΡΟΘΕΣΜΙΑ],DATE(ΜηνΈτους,ΑρΜΜήνα,D14))>0,\"Παράδοση εργασίας!\",\"\"))","v":""},{"$f":"IF(LEN(E14)=0,\"\",IF(COUNTIF(Εργασίες[ΠΡΟΘΕΣΜΙΑ],DATE(ΜηνΈτους,ΑρΜΜήνα,E14))>0,\"Παράδοση εργασίας!\",\"\"))","v":""},{"$f":"IF(LEN(F14)=0,\"\",IF(COUNTIF(Εργασίες[ΠΡΟΘΕΣΜΙΑ],DATE(ΜηνΈτους,ΑρΜΜήνα,F14))>0,\"Παράδοση εργασίας!\",\"\"))","v":""},{"$f":"IF(LEN(G14)=0,\"\",IF(COUNTIF(Εργασίες[ΠΡΟΘΕΣΜΙΑ],DATE(ΜηνΈτους,ΑρΜΜήνα,G14))>0,\"Παράδοση εργασίας!\",\"\"))","v":""},{"$f":"IF(LEN(H14)=0,\"\",IF(COUNTIF(Εργασίες[ΠΡΟΘΕΣΜΙΑ],DATE(ΜηνΈτους,ΑρΜΜήνα,H14))>0,\"Παράδοση εργασίας!\",\"\"))","v":""}]
[null,{"$f":"IF(LEN(H14)>0,IF(H14=DAY(DATE(ΜηνΈτους,ΑρΜΜήνα+1,0)),\"\",H14+1),\"\")","v":""},{"$f":"IF(LEN(B16)>0,IF(B16=DAY(DATE(ΜηνΈτους,ΑρΜΜήνα+1,0)),\"\",B16+1),\"\")","v":""},"","","","",""]
[null,{"$f":"IF(LEN(B16)=0,\"\",IF(COUNTIF(Εργασίες[ΠΡΟΘΕΣΜΙΑ],DATE(ΜηνΈτους,ΑρΜΜήνα,B16))>0,\"Παράδοση εργασίας!\",\"\"))","v":""},{"$f":"IF(LEN(C16)=0,\"\",IF(COUNTIF(Εργασίες[ΠΡΟΘΕΣΜΙΑ],DATE(ΜηνΈτους,ΑρΜΜήνα,C16))>0,\"Παράδοση εργασίας!\",\"\"))","v":""},{"$f":"IF(LEN(D16)=0,\"\",IF(COUNTIF(Εργασίες[ΠΡΟΘΕΣΜΙΑ],DATE(ΜηνΈτους,ΑρΜΜήνα,D16))>0,\"Παράδοση εργασίας!\",\"\"))","v":""},{"$f":"IF(LEN(E16)=0,\"\",IF(COUNTIF(Εργασίες[ΠΡΟΘΕΣΜΙΑ],DATE(ΜηνΈτους,ΑρΜΜήνα,E16))>0,\"Παράδοση εργασίας!\",\"\"))","v":""},{"$f":"IF(LEN(F16)=0,\"\",IF(COUNTIF(Εργασίες[ΠΡΟΘΕΣΜΙΑ],DATE(ΜηνΈτους,ΑρΜΜήνα,F16))>0,\"Παράδοση εργασίας!\",\"\"))","v":""},{"$f":"IF(LEN(G16)=0,\"\",IF(COUNTIF(Εργασίες[ΠΡΟΘΕΣΜΙΑ],DATE(ΜηνΈτους,ΑρΜΜήνα,G16))>0,\"Παράδοση εργασίας!\",\"\"))","v":""},{"$f":"IF(LEN(H16)=0,\"\",IF(COUNTIF(Εργασίες[ΠΡΟΘΕΣΜΙΑ],DATE(ΜηνΈτους,ΑρΜΜήνα,H16))>0,\"Παράδοση εργασίας!\",\"\"))","v":""}]

{"sheet":"Προβολή εβδομάδας","index":2,"n_rows":17,"n_cols":8,"rows_kept":17,"merged":[[3,1,3,7]]}
[null,"ΕΡΓΑΣΙΕΣ","ΠΡΟΒΟΛΗ ΜΗΝΑ"]
[null,"Επιλέξτε μήνα:","Εισαγάγετε έτος:","Επιλέξτε αρ. εβδομάδας:"]
[null,9,{"$f":"YEAR(TODAY())","v":2016},"Εβδομάδα 1"]
[null," ΠΡΟΒΟΛΗ ΕΒΔΟΜΑΔΑΣ"]
[null,{"$f":"IF(WEEKDAY(DATEVALUE(\" 1/ \"&ΕβδΜήνα&\" / \"&ΕβδΈτους)-1)=COLUMN(A$2),1,IF(LEN(A5)>0,A5+1,\"\"))","v":""},"","",1,2,3,4]
[null,{"$f":"IF(LEN(H5)>0,IF(H5=ΤελευταίαΗμέραΜήνα_Εβδομάδα,\"\",H5+1),\"\")","v":5},{"$f":"IF(LEN(B6)>0,IF(B6=ΤελευταίαΗμέραΜήνα_Εβδομάδα,\"\",B6+1),\"\")","v":6},7,8,9,10,11]
[null,{"$f":"IF(LEN(H6)>0,IF(H6=ΤελευταίαΗμέραΜήνα_Εβδομάδα,\"\",H6+1),\"\")","v":12},13,14,15,16,17,18]
[null,{"$f":"IF(LEN(H7)>0,IF(H7=ΤελευταίαΗμέραΜήνα_Εβδομάδα,\"\",H7+1),\"\")","v":19},20,21,22,23,24,25]
[null,{"$f":"IF(LEN(H8)>0,IF(H8=ΤελευταίαΗμέραΜήνα_Εβδομάδα,\"\",H8+1),\"\")","v":26},27,28,29,30,"",""]
[null,{"$f":"IF(LEN(H9)>0,IF(H9=ΤελευταίαΗμέραΜήνα_Εβδομάδα,\"\",H9+1),\"\")","v":""},"","","","","",""]
[null,"ΔΕΥΤΕΡΑ","ΤΡΙΤΗ","ΤΕΤΑΡΤΗ","ΠΕΜΠΤΗ","ΠΑΡΑΣΚΕΥΗ","ΣΑΒΒΑΤΟ","ΚΥΡΙΑΚΗ"]
[null,{"$f":"IF(B14=\"\",IF(AND(ISNUMBER(A12),A12<ΤελευταίαΗμέραΜήνα_Εβδομάδα),A12+1,\"\"),IF(B14<=7,\"\",INDEX(ΠροβΕβδΜήνα,ΕβδΕβδομάδα,COLUMN(A$2))-7))","v":""},"","","","","",""]
[null,{"$f":"IF(LEN(B12)=0,\"\",IF(COUNTIF(Εργασίες[ΠΡΟΘΕΣΜΙΑ],DATE(ΕβδΈτους,ΑρΕβδΜήνα,B12))>0,\"Παράδοση εργασίας!\",\"\"))","v":""},{"$f":"IF(LEN(C12)=0,\"\",IF(COUNTIF(Εργασίες[ΠΡΟΘΕΣΜΙΑ],DATE(ΕβδΈτους,ΑρΕβδΜήνα,C12))>0,\"Παράδοση εργασίας!\",\"\"))","v":""},{"$f":"IF(LEN(D12)=0,\"\",IF(COUNTIF(Εργασίες[ΠΡΟΘΕΣΜΙΑ],DATE(ΕβδΈτους,ΑρΕβδΜήνα,D12))>0,\"Παράδοση εργασίας!\",\"\"))","v":""},{"$f":"IF(LEN(E12)=0,\"\",IF(COUNTIF(Εργασίες[ΠΡΟΘΕΣΜΙΑ],DATE(ΕβδΈτους,ΑρΕβδΜήνα,E12))>0,\"Παράδοση εργασίας!\",\"\"))","v":""},{"$f":"IF(LEN(F12)=0,\"\",IF(COUNTIF(Εργασίες[ΠΡΟΘΕΣΜΙΑ],DATE(ΕβδΈτους,ΑρΕβδΜήνα,F12))>0,\"Παράδοση εργασίας!\",\"\"))","v":""},{"$f":"IF(LEN(G12)=0,\"\",IF(COUNTIF(Εργασίες[ΠΡΟΘΕΣΜΙΑ],DATE(ΕβδΈτους,ΑρΕβδΜήνα,G12))>0,\"Παράδοση εργασίας!\",\"\"))","v":""},{"$f":"IF(LEN(H12)=0,\"\",IF(COUNTIF(Εργασίες[ΠΡΟΘΕΣΜΙΑ],DATE(ΕβδΈτους,ΑρΕβδΜήνα,H12))>0,\"Παράδοση εργασίας!\",\"\"))","v":""}]
[null,{"$f":"INDEX(ΠροβΕβδΜήνα,ΕβδΕβδομάδα,COLUMN(A$2))","v":""},"","",1,2,3,4]
[null,{"$f":"IF(LEN(B14)=0,\"\",IF(COUNTIF(Εργασίες[ΠΡΟΘΕΣΜΙΑ],DATE(ΕβδΈτους,ΑρΕβδΜήνα,B14))>0,\"Παράδοση εργασίας!\",\"\"))","v":""},{"$f":"IF(LEN(C14)=0,\"\",IF(COUNTIF(Εργασίες[ΠΡΟΘΕΣΜΙΑ],DATE(ΕβδΈτους,ΑρΕβδΜήνα,C14))>0,\"Παράδοση εργασίας!\",\"\"))","v":""},{"$f":"IF(LEN(D14)=0,\"\",IF(COUNTIF(Εργασίες[ΠΡΟΘΕΣΜΙΑ],DATE(ΕβδΈτους,ΑρΕβδΜήνα,D14))>0,\"Παράδοση εργασίας!\",\"\"))","v":""},{"$f":"IF(LEN(E14)=0,\"\",IF(COUNTIF(Εργασίες[ΠΡΟΘΕΣΜΙΑ],DATE(ΕβδΈτους,ΑρΕβδΜήνα,E14))>0,\"Παράδοση εργασίας!\",\"\"))","v":""},{"$f":"IF(LEN(F14)=0,\"\",IF(COUNTIF(Εργασίες[ΠΡΟΘΕΣΜΙΑ],DATE(ΕβδΈτους,ΑρΕβδΜήνα,F14))>0,\"Παράδοση εργασίας!\",\"\"))","v":""},{"$f":"IF(LEN(G14)=0,\"\",IF(COUNTIF(Εργασίες[ΠΡΟΘΕΣΜΙΑ],DATE(ΕβδΈτους,ΑρΕβδΜήνα,G14))>0,\"Παράδοση εργασίας!\",\"\"))","v":""},{"$f":"IF(LEN(H14)=0,\"\",IF(COUNTIF(Εργασίες[ΠΡΟΘΕΣΜΙΑ],DATE(ΕβδΈτους,ΑρΕβδΜήνα,H14))>0,\"Παράδοση εργασίας!\",\"\"))","v":""}]
[null,{"$f":"IFERROR(IF(B14=\"\",IF(AND(ISNUMBER(A16),A16<ΤελευταίαΗμέραΜήνα_Εβδομάδα),A16+1,$H$14+COLUMN(A$2)),IF(B14+7>ΤελευταίαΗμέραΜήνα_Εβδομάδα,\"\",INDEX(ΠροβΕβδΜήνα,ΕβδΕβδομάδα,COLUMN(A$2))+7)),\"\")","v":5},{"$f":"IFERROR(IF(C14=\"\",IF(AND(ISNUMBER(B16),B16<ΤελευταίαΗμέραΜήνα_Εβδομάδα),B16+1,$H$14+COLUMN(B$2)),IF(C14+7>ΤελευταίαΗμέραΜήνα_Εβδομάδα,\"\",INDEX(ΠροβΕβδΜήνα,ΕβδΕβδομάδα,COLUMN(B$2))+7)),\"\")","v":6},{"$f":"IFERROR(IF(D14=\"\",IF(AND(ISNUMBER(C16),C16<ΤελευταίαΗμέραΜήνα_Εβδομάδα),C16+1,$H$14+COLUMN(C$2)),IF(D14+7>ΤελευταίαΗμέραΜήνα_Εβδομάδα,\"\",INDEX(ΠροβΕβδΜήνα,ΕβδΕβδομάδα,COLUMN(C$2))+7)),\"\")","v":7},{"$f":"IFERROR(IF(E14=\"\",IF(AND(ISNUMBER(D16),D16<ΤελευταίαΗμέραΜήνα_Εβδομάδα),D16+1,$H$14+COLUMN(D$2)),IF(E14+7>ΤελευταίαΗμέραΜήνα_Εβδομάδα,\"\",INDEX(ΠροβΕβδΜήνα,ΕβδΕβδομάδα,COLUMN(D$2))+7)),\"\")","v":8},{"$f":"IFERROR(IF(F14=\"\",IF(AND(ISNUMBER(E16),E16<ΤελευταίαΗμέραΜήνα_Εβδομάδα),E16+1,$H$14+COLUMN(E$2)),IF(F14+7>ΤελευταίαΗμέραΜήνα_Εβδομάδα,\"\",INDEX(ΠροβΕβδΜήνα,ΕβδΕβδομάδα,COLUMN(E$2))+7)),\"\")","v":9},{"$f":"IFERROR(IF(G14=\"\",IF(AND(ISNUMBER(F16),F16<ΤελευταίαΗμέραΜήνα_Εβδομάδα),F16+1,$H$14+COLUMN(F$2)),IF(G14+7>ΤελευταίαΗμέραΜήνα_Εβδομάδα,\"\",INDEX(ΠροβΕβδΜήνα,ΕβδΕβδομάδα,COLUMN(F$2))+7)),\"\")","v":10},{"$f":"IFERROR(IF(H14=\"\",IF(AND(ISNUMBER(G16),G16<ΤελευταίαΗμέραΜήνα_Εβδομάδα),G16+1,$H$14+COLUMN(G$2)),IF(H14+7>ΤελευταίαΗμέραΜήνα_Εβδομάδα,\"\",INDEX(ΠροβΕβδΜήνα,ΕβδΕβδομάδα,COLUMN(G$2))+7)),\"\")","v":11}]
[null,{"$f":"IF(LEN(B16)=0,\"\",IF(COUNTIF(Εργασίες[ΠΡΟΘΕΣΜΙΑ],DATE(ΕβδΈτους,ΑρΕβδΜήνα,B16))>0,\"Παράδοση εργασίας!\",\"\"))","v":""},{"$f":"IF(LEN(C16)=0,\"\",IF(COUNTIF(Εργασίες[ΠΡΟΘΕΣΜΙΑ],DATE(ΕβδΈτους,ΑρΕβδΜήνα,C16))>0,\"Παράδοση εργασίας!\",\"\"))","v":""},{"$f":"IF(LEN(D16)=0,\"\",IF(COUNTIF(Εργασίες[ΠΡΟΘΕΣΜΙΑ],DATE(ΕβδΈτους,ΑρΕβδΜήνα,D16))>0,\"Παράδοση εργασίας!\",\"\"))","v":""},{"$f":"IF(LEN(E16)=0,\"\",IF(COUNTIF(Εργασίες[ΠΡΟΘΕΣΜΙΑ],DATE(ΕβδΈτους,ΑρΕβδΜήνα,E16))>0,\"Παράδοση εργασίας!\",\"\"))","v":""},{"$f":"IF(LEN(F16)=0,\"\",IF(COUNTIF(Εργασίες[ΠΡΟΘΕΣΜΙΑ],DATE(ΕβδΈτους,ΑρΕβδΜήνα,F16))>0,\"Παράδοση εργασίας!\",\"\"))","v":""},{"$f":"IF(LEN(G16)=0,\"\",IF(COUNTIF(Εργασίες[ΠΡΟΘΕΣΜΙΑ],DATE(ΕβδΈτους,ΑρΕβδΜήνα,G16))>0,\"Παράδοση εργασίας!\",\"\"))","v":""},{"$f":"IF(LEN(H16)=0,\"\",IF(COUNTIF(Εργασίες[ΠΡΟΘΕΣΜΙΑ],DATE(ΕβδΈτους,ΑρΕβδΜήνα,H16))>0,\"Παράδοση εργασίας!\",\"\"))","v":""}]